Workbook

Sheet Value
D2: VALUATION OF BARRIER OPTIONS
D4: INPUT
D5: Strike (X) | E5: 100
D6: Barrier Level(H) | E6: 95
D7: Volatility(sd) | E7: 0.2
D8: Time to Maturity(T) | E8: 1
D9: Cost of Carry rate(b) | E9: 0.05
D10: Risk free rate(r) | E10: 0.05
D12: IF SPOT>BARRIER | E12: SPOT | F12: 100 | G12: IF SPOT < BARRIER | H12: SPOT | I12: 90
D13: OUTPUT
D14: CALL | E14: PRICE | G14: CALL | H14: PRICE
D15: Down-and-In | E15: =call_put_down_in(F12,E5,E9,E10,E6,E7,E8,1) -> 4.814325463 | G15: Up-and-In | H15: =call_put_up_in(I12,E5,E9,E10,E6,E7,E8,1) -> 5.091222079
D16: Down-and-Out | E16: =call_put_down_out(F12,E5,E9,E10,E6,E7,E8,1) -> 5.636258109 | G16: Up-and-Out | H16: =call_put_up_out(I12,E5,E9,E10,E6,E7,E8,1) -> 0
D18: PUT | E18: PRICE | G18: PUT | H18: PRICE
D19: Down-and-In | E19: =call_put_down_in(F12,E5,E9,E10,E6,E7,E8,-1) -> 5.563480558 | G19: Up-and-In | H19: =call_put_up_in(I12,E5,E9,E10,E6,E7,E8,-1) -> 5.924341179
D20: Down-and-Out | E20: =call_put_down_out(F12,E5,E9,E10,E6,E7,E8,-1) -> 0.01004546459 | G20: Up-and-Out | H20: =call_put_up_out(I12,E5,E9,E10,E6,E7,E8,-1) -> 4.28982335
D23: GREEKS | E23: DELTA | F23: GAMMA | G23: THETA | H23: RHO | I23: VEGA
D24: CALL
D25: Down-and-In | E25: =(call_put_down_in(F12+0.001,E5,E9,E10,E6,E7,E8,1)-E15)/0.001 -> -0.4359499551 | F25: =((call_put_down_in(F12+0.002,E5,E9,E10,E6,E7,E8,1)-call_put_down_in(F12+0.001,E5,E9,E10,E6,E7,E8,1))/0.001-E25)/0.001 -> 0.03643965485 | G25: =-(call_put_down_in(F12,E5,E9,E10,E6,E7,E8+0.001,1)-E15)/0.001 -> -4.867441415 | H25: =(call_put_down_in(F12,E5,E9+0.001,E10+0.001,E6,E7,E8,1)-E15)/0.001 -> 19.21514906 | I25: =(call_put_down_in(F12,E5,E9,E10,E6,E7+0.001,E8,1)-E15)/0.001 -> 39.07685899
D26: Down-and-Out | E26: =(call_put_down_out(F12+0.001,E5,E9,E10,E6,E7,E8,1)-E16)/0.001 -> 1.072789987 | F26: =((call_put_down_out(F12+0.002,E5,E9,E10,E6,E7,E8,1)-call_put_down_out(F12+0.001,E5,E9,E10,E6,E7,E8,1))/0.001-E26)/0.001 -> -0.0176781576 | G26: =-(call_put_down_out(F12,E5,E9,E10,E6,E7,E8+0.001,1)-E16)/0.001 -> -1.545537427 | H26: =(call_put_down_out(F12,E5,E9+0.001,E10+0.001,E6,E7,E8,1)-E16)/0.001 -> 34.08444906 | I26: =(call_put_down_out(F12,E5,E9,E10,E6,E7+0.001,E8,1)-E16)/0.001 -> -1.54792958
D27: Up-and-In | E27: =(call_put_up_in(I12+0.001,E5,E9,E10,E6,E7,E8,1)-H15)/0.001 -> 0.4298426418 | F27: =((call_put_up_in(I12+0.002,E5,E9,E10,E6,E7,E8,1)-call_put_up_in(I12+0.001,E5,E9,E10,E6,E7,E8,1))/0.001-E27)/0.001 -> 0.02181971137 | G27: =-(call_put_up_in(I12,E5,E9,E10,E6,E7,E8+0.001,1)-H15)/0.001 -> -5.213991255 | H27: =(call_put_up_in(I12,E5,E9+0.001,E10+0.001,E6,E7,E8,1)-H15)/0.001 -> 33.66520896 | I27: =(call_put_up_in(I12,E5,E9,E10,E6,E7+0.001,E8,1)-H15)/0.001 -> 35.35384374
D28: Up-and-Out | E28: =(call_put_up_out(I12+0.001,E5,E9,E10,E6,E7,E8,1)-H16)/0.001 -> 0 | F28: =((call_put_up_out(I12+0.002,E5,E9,E10,E6,E7,E8,1)-call_put_up_out(I12+0.001,E5,E9,E10,E6,E7,E8,1))/0.001-E28)/0.001 -> 0 | G28: =-(call_put_up_out(I12,E5,E9,E10,E6,E7,E8+0.001,1)-H16)/0.001 -> 0 | H28: =(call_put_up_out(I12,E5,E9+0.001,E10+0.001,E6,E7,E8,1)-H16)/0.001 -> 0 | I28: =(call_put_up_out(I12,E5,E9,E10,E6,E7+0.001,E8,1)-H16)/0.001 -> 0
D29: PUT
D30: Down-and-In | E30: =(call_put_down_in(F12+0.001,E5,E9,E10,E6,E7,E8,-1)-E19)/0.001 -> -0.3649150395 | F30: =((call_put_down_in(F12+0.002,E5,E9,E10,E6,E7,E8,-1)-call_put_down_in(F12+0.001,E5,E9,E10,E6,E7,E8,-1))/0.001-E30)/0.001 -> 0.01887916135 | G30: =-(call_put_down_in(F12,E5,E9,E10,E6,E7,E8+0.001,-1)-E19)/0.001 -> -1.672189815 | H30: =(call_put_down_in(F12,E5,E9+0.001,E10+0.001,E6,E7,E8,-1)-E19)/0.001 -> -41.75170259 | I30: =(call_put_down_in(F12,E5,E9,E10,E6,E7+0.001,E8,-1)-E19)/0.001 -> 37.66823778
D31: Down-and-Out | E31: =(call_put_down_out(F12+0.001,E5,E9,E10,E6,E7,E8,-1)-E20)/0.001 -> 0.001755071573 | F31: =((call_put_down_out(F12+0.002,E5,E9,E10,E6,E7,E8,-1)-call_put_down_out(F12+0.001,E5,E9,E10,E6,E7,E8,-1))/0.001-E31)/0.001 -> -0.0001176516662 | G31: =-(call_put_down_out(F12,E5,E9,E10,E6,E7,E8+0.001,-1)-E20)/0.001 -> 0.01523919473 | H31: =(call_put_down_out(F12,E5,E9+0.001,E10+0.001,E6,E7,E8,-1)-E20)/0.001 -> -0.02409611509 | I31: =(call_put_down_out(F12,E5,E9,E10,E6,E7+0.001,E8,-1)-E20)/0.001 -> -0.1393083657
D32: Up-and-In | E32: =(call_put_up_in(I12+0.001,E5,E9,E10,E6,E7,E8,-1)-H19)/0.001 -> 0.3358972865 | F32: =((call_put_up_in(I12+0.002,E5,E9,E10,E6,E7,E8,-1)-call_put_up_in(I12+0.001,E5,E9,E10,E6,E7,E8,-1))/0.001-E32)/0.001 -> 0.003821766015 | G32: =-(call_put_up_in(I12,E5,E9,E10,E6,E7,E8+0.001,-1)-H19)/0.001 -> -1.833547502 | H32: =(call_put_up_in(I12,E5,E9+0.001,E10+0.001,E6,E7,E8,-1)-H19)/0.001 -> -28.79728788 | I32: =(call_put_up_in(I12,E5,E9,E10,E6,E7+0.001,E8,-1)-H19)/0.001 -> 32.7716754
D33: Up-and-Out | E33: =(call_put_up_out(I12+0.001,E5,E9,E10,E6,E7,E8,-1)-H20)/0.001 -> -0.9060546447 | F33: =((call_put_up_out(I12+0.002,E5,E9,E10,E6,E7,E8,-1)-call_put_up_out(I12+0.001,E5,E9,E10,E6,E7,E8,-1))/0.001-E33)/0.001 -> 0.01799796223 | G33: =-(call_put_up_out(I12,E5,E9,E10,E6,E7,E8+0.001,-1)-H20)/0.001 -> 1.375584468 | H33: =(call_put_up_out(I12,E5,E9+0.001,E10+0.001,E6,E7,E8,-1)-H20)/0.001 -> -32.61289999 | I33: =(call_put_up_out(I12,E5,E9,E10,E6,E7+0.001,E8,-1)-H20)/0.001 -> 2.582168345

Sheet Graphs

Sheet Data Graphs
D1: Spot Rate(S) | E1: =Value!F12 -> 100 | G1: Time to Maturity(T) | H1: =Value!E8 -> 1 | J1: Spot rate | K1: =Value!I12 -> 90
D2: Strike (X) | E2: =Value!E5 -> 100 | G2: Cost of Carry rate(b) | H2: =Value!E9 -> 0.05
D3: Barrier Level(H) | E3: =Value!E6 -> 95 | G3: Risk free rate(r) | H3: =Value!E10 -> 0.05
D4: Volatility(sd) | E4: =Value!E7 -> 0.2
B5: S>H | D5: call | F5: put | I5: s<H | J5: call | L5: put | P5: call | T5: put | Y5: S>H | AA5: call | AC5: put | AE5: call | AG5: put
C6: Strike | D6: down in | E6: down out | F6: down in | G6: down out | I6: Strike | J6: up in | K6: up out | L6: up in | M6: up out | O6: Spot rate | P6: down in | Q6: down out | R6: up in | S6: up out | T6: down in | U6: down out | V6: up in | W6: up out | Z6: Volatility | AA6: down in | AB6: down out | AC6: down in | AD6: down out | AE6: up in | AF6: up out | AG6: up in | AH6: up out | AI6: d1 | AJ6: d2 | AK6: Put option
C7: 80 | D7: =call_put_down_in($E$1,C7,$H$2,$H$3,$E$3,$E$4,$H$1,1) -> 14.50931405 | E7: =call_put_down_out($E$1,C7,$H$2,$H$3,$E$3,$E$4,$H$1,1) -> 10.07952139 | F7: =call_put_down_in($E$1,C7,$H$2,$H$3,$E$3,$E$4,$H$1,-1) -> 0.687189404 | G7: =call_put_down_out($E$1,C7,$H$2,$H$3,$E$3,$E$4,$H$1,-1) -> 0 | I7: 80 | J7: =call_put_up_in($K$1,I7,$H$2,$H$3,$E$3,$E$4,$H$1,1) -> 15.44747527 | K7: =call_put_up_out($K$1,I7,$H$2,$H$3,$E$3,$E$4,$H$1,1) -> 0.3053700262 | L7: =call_put_up_in($K$1,I7,$H$2,$H$3,$E$3,$E$4,$H$1,-1) -> 0.7240286287 | M7: =call_put_up_out($K$1,I7,$H$2,$H$3,$E$3,$E$4,$H$1,-1) -> 1.12717063 | O7: 60 | P7: =call_put_down_in(O7,$E$2,$H$2,$H$3,$E$3,$E$4,$H$1,1) -> 0 | Q7: =call_put_down_out(O7,$E$2,$H$2,$H$3,$E$3,$E$4,$H$1,1) -> 0 | R7: =call_put_up_in(O7,$E$3,$H$2,$H$3,$E$3,$E$4,$H$1,1) -> 0.1095137112 | S7: =call_put_up_out(O7,$E$2,$H$2,$H$3,$E$3,$E$4,$H$1,1) -> 0 | T7: =call_put_down_in(O7,$E$2,$H$2,$H$3,$E$3,$E$4,$H$1,-1) -> 0 | U7: =call_put_down_out(O7,$E$2,$H$2,$H$3,$E$3,$E$4,$H$1,-1) -> 0 | V7: =call_put_up_in(O7,$E$2,$H$2,$H$3,$E$3,$E$4,$H$1,-1) -> 0.1684382096 | W7: =call_put_up_out(O7,$E$2,$H$2,$H$3,$E$3,$E$4,$H$1,-1) -> 35.00894097 | Z7: 0.01 | AA7: =call_put_down_in($E$1,$E$2,$H$2,$H$3,$E$3,Z7,$H$1,1) -> 6.680232918e-31 | AB7: =call_put_down_out($E$1,$E$2,$H$2,$H$3,$E$3,Z7,$H$1,1) -> 4.877057602 | AC7: =call_put_down_in($E$1,$E$2,$H$2,$H$3,$E$3,Z7,$H$1,-1) -> 1.117645544e-22 | AD7: =call_put_down_out($E$1,$E$2,$H$2,$H$3,$E$3,Z7,$H$1,-1) -> 5.217121351e-08 | AE7: =call_put_up_in($K$1,$E$2,$H$2,$H$3,$E$3,Z7,$H$1,1) -> 2.438938096e-09 | AF7: =call_put_up_out($K$1,$E$2,$H$2,$H$3,$E$3,Z7,$H$1,1) -> 0 | AG7: =call_put_up_in($K$1,$E$2,$H$2,$H$3,$E$3,Z7,$H$1,-1) -> 1.581707343 | AH7: =call_put_up_out($K$1,$E$2,$H$2,$H$3,$E$3,Z7,$H$1,-1) -> 3.54123511 | AI7: =(LN($K$1/$E$2)+($H$3+Z7^2/2)*$H$1)/(Z7*SQRT($H$1)) -> -5.531051566 | AJ7: =AI7-Z7*$H$1 -> -5.541051566 | AK7: =NORMDIST(-AJ7,0,1,TRUE)*$E$2*EXP(-$H$3*$H$1)-NORMDIST(-AI7,0,1,TRUE)*$K$1 -> 5.122942453
C8: 81 | D8: =call_put_down_in($E$1,C8,$H$2,$H$3,$E$3,$E$4,$H$1,1) -> 13.88398431 | E8: =call_put_down_out($E$1,C8,$H$2,$H$3,$E$3,$E$4,$H$1,1) -> 9.856855956 | F8: =call_put_down_in($E$1,C8,$H$2,$H$3,$E$3,$E$4,$H$1,-1) -> 0.7904236503 | G8: =call_put_down_out($E$1,C8,$H$2,$H$3,$E$3,$E$4,$H$1,-1) -> 0 | I8: 81 | J8: =call_put_up_in($K$1,I8,$H$2,$H$3,$E$3,$E$4,$H$1,1) -> 14.77896123 | K8: 0.2505423388 | L8: =call_put_up_in($K$1,I8,$H$2,$H$3,$E$3,$E$4,$H$1,-1) -> 0.8333428727 | M8: =call_put_up_out($K$1,I8,$H$2,$H$3,$E$3,$E$4,$H$1,-1) -> 1.245744079 | O8: 61 | P8: =call_put_down_in(O8,$E$2,$H$2,$H$3,$E$3,$E$4,$H$1,1) -> 0 | Q8: =call_put_down_out(O8,$E$2,$H$2,$H$3,$E$3,$E$4,$H$1,1) -> 0 | R8: =call_put_up_in(O8,$E$3,$H$2,$H$3,$E$3,$E$4,$H$1,1) -> 0.1378594279 | S8: =call_put_up_out(O8,$E$2,$H$2,$H$3,$E$3,$E$4,$H$1,1) -> 0 | T8: =call_put_down_in(O8,$E$2,$H$2,$H$3,$E$3,$E$4,$H$1,-1) -> 0 | U8: =call_put_down_out(O8,$E$2,$H$2,$H$3,$E$3,$E$4,$H$1,-1) -> 0 | V8: =call_put_up_in(O8,$E$2,$H$2,$H$3,$E$3,$E$4,$H$1,-1) -> 0.2076925431 | W8: =call_put_up_out(O8,$E$2,$H$2,$H$3,$E$3,$E$4,$H$1,-1) -> 33.9849928 | Z8: 0.015 | AA8: =call_put_down_in($E$1,$E$2,$H$2,$H$3,$E$3,Z8,$H$1,1) -> 1.051086111e-14 | AB8: =call_put_down_out($E$1,$E$2,$H$2,$H$3,$E$3,Z8,$H$1,1) -> 4.877221512 | AC8: =call_put_down_in($E$1,$E$2,$H$2,$H$3,$E$3,Z8,$H$1,-1) -> 2.649156936e-10 | AD8: =call_put_down_out($E$1,$E$2,$H$2,$H$3,$E$3,Z8,$H$1,-1) -> 0.0001639616712 | AE8: =call_put_up_in($K$1,$E$2,$H$2,$H$3,$E$3,Z8,$H$1,1) -> 3.739195654e-05 | AF8: =call_put_up_out($K$1,$E$2,$H$2,$H$3,$E$3,Z8,$H$1,1) -> 0 | AG8: =call_put_up_in($K$1,$E$2,$H$2,$H$3,$E$3,Z8,$H$1,-1) -> 1.748559097 | AH8: =call_put_up_out($K$1,$E$2,$H$2,$H$3,$E$3,Z8,$H$1,-1) -> 3.374420745 | AI8: =(LN($K$1/$E$2)+($H$3+Z8^2/2)*$H$1)/(Z8*SQRT($H$1)) -> -3.683201044 | AJ8: =AI8-Z8*$H$1 -> -3.698201044 | AK8: =NORMDIST(-AJ8,0,1,TRUE)*$E$2*EXP(-$H$3*$H$1)-NORMDIST(-AI8,0,1,TRUE)*$K$1 -> 5.122979842
C9: 82 | D9: 13.27000677 | E9: 9.634190519 | F9: 0.9050100947 | G9: 0 | I9: 82 | J9: 14.12255354 | K9: 0.2022331911 | L9: 0.9547634714 | M9: 1.370836069 | O9: 62 | P9: 0 | Q9: 0 | R9: 0.171954254 | S9: 0 | T9: 0 | U9: 0 | V9: 0.2537697169 | W9: 32.95767163 | Z9: 0.02 | AA9: 7.012006178e-09 | AB9: 4.88096669 | AC9: 5.569566064e-06 | AD9: 0.003903577518 | AE9: 0.001567239483 | AF9: 0 | AG9: 1.795598901 | AH9: 3.328910788 | AI9: -2.758025783 | AJ9: -2.778025783 | AK9: 5.12450969
C10: 83 | D10: 12.66807928 | E10: 9.411525081 | F10: 1.031646596 | G10: 0 | I10: 83 | J10: 13.47900736 | K10: 0.1602041152 | L10: 1.089045574 | M10: 1.50220813 | O10: 63 | P10: 0 | Q10: 0 | R10: 0.2126088142 | S10: 0 | T10: 0 | U10: 0 | V10: 0.307382794 | W10: 31.92683362 | Z10: 0.025 | AA10: 4.260562614e-06 | AB10: 4.897754684 | AC10: 0.0005509066285 | AD10: 0.02015048775 | AE10: 0.01084836558 | AF10: 0 | AG10: 1.802198866 | AH10: 3.33159195 | AI10: -2.201920626 | AJ10: -2.226920626 | AK10: 5.133790816
C11: 84 | D11: 12.07888626 | E11: 9.188859644 | F11: 1.171017566 | G11: 0 | I11: 84 | J11: 12.8490646 | K11: 0.1241651894 | L11: 1.236931102 | M11: 1.639570342 | O11: 64 | P11: 0 | Q11: 0 | R11: 0.260684333 | S11: =call_put_up_out(O11,$E$2,$H$2,$H$3,$E$3,$E$4,$H$1,1) -> 0 | T11: 0 | U11: 0 | V11: 0.3692432304 | W11: 30.89238906 | Z11: 0.03 | AA11: 0.0001573177447 | AB11: 4.934906457 | AC11: 0.006658332773 | AD11: 0.0513478925 | AE11: 0.03531912668 | AF11: 0 | AG11: 1.801648922 | AH11: 3.356612655 | AI11: -1.830350522 | AJ11: -1.860350522 | AK11: 5.158261577
C12: 85 | D12: 11.50309372 | E12: 8.966194206 | F12: 1.323789004 | G12: 0 | I12: 85 | J12: 12.23344859 | K12: 0.09377799651 | L12: 1.399143383 | M12: 1.782584286 | O12: 65 | P12: 0 | Q12: 0 | R12: 0.3170867265 | S12: 0 | T12: 0 | U12: 0 | V12: 0.4400498669 | W12: 29.85431168 | Z12: 0.035 | AA12: 0.001510773628 | AB12: 4.993033343 | AC12: 0.03003957737 | AD12: 0.08744698935 | AE12: 0.07856115812 | AF12: 0 | AG12: 1.80885424 | AH12: 3.392649369 | AI12: -1.564229019 | AJ12: -1.599229019 | AK12: 5.201503608
C13: 86 | D13: 10.94134445 | E13: 8.743528769 | F13: 1.49060373 | G13: 0 | I13: 86 | J13: 11.63285891 | K13: 0.06865918577 | L13: 1.576381992 | M13: 1.930866613 | O13: 66 | P13: 0 | Q13: 0 | R13: 0.3827596318 | S13: 0 | T13: 0 | U13: 0 | V13: 0.5204777143 | W13: 28.81264721 | Z13: 0.04 | AA13: 0.006975403625 | AB13: 5.067406698 | AC13: 0.08058524312 | AD13: 0.1167393088 | AE13: 0.1405401047 | AF13: 0 | AG13: 1.829431794 | AH13: 3.434050761 | AI13: -1.364012891 | AJ13: -1.404012891 | AK13: 5.263482555
C14: 87 | D14: 10.3942536 | E14: 8.520863331 | F14: 1.672076867 | G14: 0 | I14: 87 | J14: 11.04796646 | K14: 0.04838455262 | L14: 1.769317825 | M14: 2.083993117 | O14: 67 | P14: 0 | Q14: 0 | R14: 0.4586765069 | S14: 0 | T14: 0 | U14: 0 | V14: 0.6111668193 | W14: 27.76752085 | Z14: 0.045 | AA14: 0.02084555129 | AB14: 5.150769757 | AC14: 0.1603622435 | AD14: 0.1341955152 | AE14: 0.2194341628 | AF14: 0 | AG14: 1.864618919 | AH14: 3.477757694 | AI14: -1.207733681 | AJ14: -1.252733681 | AK14: 5.342376613
C15: 88 | D15: 9.862404378 | E15: 8.298197894 | F15: 1.868791628 | G15: 0 | I15: 88 | J15: 10.47940886 | K15: 0.03249354786 | L15: 1.97858851 | M15: 2.24150325 | O15: 68 | P15: 0 | Q15: 0 | R15: 0.5458319605 | S15: 0 | T15: 0 | U15: 0 | V15: 0.7127114911 | W15: 26.71914349 | Z15: 0.05 | AA15: 0.04725972639 | AB15: 5.236009261 | AC15: 0.2656800204 | AD15: 0.1405314174 | AE15: 0.3128910407 | AF15: 0 | AG15: 1.913802236 | AH15: 3.522031255 | AI15: -1.082210313 | AJ15: -1.132210313 | AK15: 5.435833491
C16: 89 | D16: 9.34634423 | E16: 8.075532456 | F16: 2.081295467 | G16: 0 | I16: 89 | J16: 9.927786233 | K16: 0.02049412238 | L16: 2.204794175 | M16: 2.402904961 | O16: 69 | P16: 0 | Q16: 0 | R16: 0.6452324911 | S16: 0 | T16: 0 | U16: 0 | V16: 0.8256501535 | W16: 25.66781645 | Z16: 0.055 | AA16: 0.0890649818 | AB16: 5.317685539 | AC16: 0.3909491765 | AD16: 0.1387437944 | AE16: 0.4186201172 | AF16: 0 | AG16: 1.975704247 | AH16: 3.56585832 | AI16: -0.9790548301 | AJ16: -1.03405483 | AK16: 5.541562567
C17: 90 | D17: 8.846581389 | E17: 7.852867019 | F17: 2.310096613 | G17: 0 | I17: 90 | J17: 9.393657401 | K17: 0.01186781408 | L17: 2.44849363 | M17: 2.567679791 | O17: 70 | P17: 0 | Q17: 0 | R17: 0.7578868252 | S17: 0 | T17: 0 | U17: 0 | V17: 0.9504560613 | W17: 24.6139346 | Z17: 0.06 | AA17: 0.1475431404 | AB17: 5.392380349 | AC17: 0.5309475063 | AD17: 0.1319184336 | AE17: 0.534607999 | AF17: 0 | AG17: 2.048903421 | AH17: 3.608647028 | AI17: -0.892675261 | AJ17: -0.952675261 | AK17: 5.657550449
C18: 91 | D18: 8.363581831 | E18: 7.630201582 | F18: 2.555661042 | G18: 0 | I18: 91 | J18: 8.877536482 | K18: 0.006074984743 | L18: 2.710200998 | M18: 2.735288098 | O18: 71 | P18: 0 | Q18: 0 | R18: 0.8847960559 | S18: 0 | T18: 0 | U18: 0 | V18: 1.087529089 | W18: 23.55798773 | Z18: 0.065 | AA18: 0.2226789369 | AB18: 5.458388119 | AC18: 0.6815709883 | AD18: 0.1224385181 | AE18: 0.6591625575 | AF18: 0 | AG18: 2.132045451 | AH18: 3.650059556 | AI18: -0.8192002409 | AJ18: -0.8842002409 | AK18: 5.782105008
C19: 92 | D19: 7.897766687 | E19: 7.407536144 | F19: 2.818409885 | G19: 0 | I19: 92 | J19: 8.379890019 | K19: 0.002560118302 | L19: 2.990382822 | M19: 2.905174369 | O19: 72 | P19: 0 | Q19: 0 | R19: 1.026943776 | S19: 0 | T19: 0 | U19: 0 | V19: 1.237188759 | W19: 22.50056024 | Z19: 0.07 | AA19: 0.3135902171 | AB19: 5.515215264 | AC19: 0.8398419021 | AD19: 0.1119060286 | AE19: 0.7908897749 | AF19: 0 | AG19: 2.223916915 | AH19: 3.68991531 | AI19: -0.7558645094 | AJ19: -0.8258645094 | AK19: 5.913832225
C20: 93 | D20: 7.449510123 | E20: 7.184870707 | F20: 3.098717308 | G20: 0 | I20: 93 | J20: 7.901134571 | K20: 0.0007570968995 | L20: 3.289455661 | M20: 3.076772485 | O20: 73 | P20: 0 | Q20: 0 | R20: 1.1852864 | S20: 0 | T20: 0 | U20: 0 | V20: 1.39966864 | W20: 21.44232895 | Z20: 0.075 | AA20: 0.4189157463 | AB20: 5.563123061 | AC20: 1.003678834 | AD20: 0.1013024234 | AE20: 0.9286500257 | AF20: 0 | AG20: 2.323459934 | AH20: 3.728132542 | AI20: -0.7006402088 | AJ20: -0.7756402088 | AK20: 6.051592476
C21: 94 | D21: 7.019137684 | E21: 6.962205269 | F21: 3.396908856 | G21: 0 | I21: 94 | J21: 7.441634812 | K21: 9.437757164e-05 | L21: 3.607784189 | M21: 3.249510903 | O21: 74 | P21: 0 | Q21: 0 | R21: 1.360743857 | S21: 0 | T21: 0 | U21: 0 | V21: 1.575112206 | W21: 20.38405935 | Z21: 0.08 | AA21: 0.5370970919 | AB21: 5.602786963 | AC21: 1.17164715 | AD21: 0.09117935456 | AE21: 1.071512778 | AF21: 0 | AG21: 2.429763176 | AH21: 3.764692052 | AI21: -0.6520064457 | AJ21: -0.7320064457 | AK21: 6.194455228
C22: 95 | D22: 6.606925114 | E22: 6.739539832 | F22: 3.713260273 | G22: 4.440892099e-16 | I22: 95 | J22: 7.001702131 | K22: 0 | L22: 3.945679796 | M22: 3.422817663 | O22: 75 | P22: 0 | Q22: 0 | R22: 1.554190817 | S22: 0 | T22: 0 | U22: 0 | V22: 1.763570185 | W22: 19.32660014 | Z22: 0.085 | AA22: 0.6665583472 | AB22: 5.635069816 | AC22: 1.34275783 | AD22: 0.08181278331 | AE22: 1.218716454 | AF22: 0 | AG22: 2.54204484 | AH22: 3.799614065 | AI22: -0.6088001842 | AJ22: -0.6938001842 | AK22: 6.341658905
C23: 96 | D23: 6.213015247 | E23: 6.516956777 | F23: 4.047914393 | G23: 8.238300427e-05 | I23: 96 | J23: 6.581500098 | K23: 0 | L23: 4.303306049 | M23: 3.5962188 | O23: 76 | P23: 0 | Q23: 0 | R23: 1.766448594 | S23: 0 | T23: 0 | U23: 0 | V23: 1.964999422 | W23: 18.27087638 | Z23: 0.09 | AA23: 0.8058084623 | AB23: 5.660882821 | AC23: 1.516322476 | AD23: 0.07331125788 | AE23: 1.369635082 | AF23: 0 | AG23: 2.659634285 | AH23: 3.832943247 | AI23: -0.5701168406 | AJ23: -0.6601168406 | AK23: 6.492577532
C24: 97 | D24: 5.83717394 | E24: 6.294864665 | F24: 4.400637074 | G24: 0.0006557080245 | I24: 97 | J24: 6.180766944 | K24: 0 | L24: 4.680401183 | M24: 3.769619938 | O24: 77 | P24: 0 | Q24: 0 | R24: 1.998277853 | S24: 0 | T24: 0 | U24: 0 | V24: 2.179263205 | W24: 17.21788137 | Z24: 0.095 | AA24: 0.9534916277 | AB24: 5.681106816 | AC24: 1.691854155 | AD24: 0.06568673843 | AE24: 1.52375141 | AF24: 0 | AG24: 2.781954974 | AH24: 3.864738886 | AI24: -0.5352422701 | AJ24: -0.6302422701 | AK24: 6.64669386
C25: 98 | D25: 5.479044837 | E25: 6.073743622 | F25: 4.771071958 | G25: 0.002200102313 | I25: 98 | J25: 5.799104991 | K25: 0 | L25: 5.076567517 | M25: 3.943021075 | O25: 78 | P25: 0 | Q25: 0 | R25: 2.250372219 | S25: 0 | T25: 0 | U25: 0 | V25: 2.406133 | W25: 16.16866738 | Z25: 0.1 | AA25: 1.108405531 | AB25: 5.696552177 | AC25: 1.869001245 | AD25: 0.05889891353 | AE25: 1.68063553 | AF25: 0 | AG25: 2.908509586 | AH25: 3.895068394 | AI25: -0.5036051566 | AJ25: -0.6036051566 | AK25: 6.80357798
C26: 99 | D26: 5.13823632 | E26: 5.85405895 | F26: 5.158827427 | G26: 0.005180867818 | I26: 99 | J26: 5.436079317 | K26: 0 | L26: 5.49137013 | M26: 4.116422212 | O26: 79 | P26: 0 | Q26: 0 | R26: 2.52335286 | S26: 0 | T26: 0 | U26: 0 | V26: 2.645291477 | W26: 15.12433557 | Z26: 0.105 | AA26: 1.269501152 | AB26: 5.707942183 | AC26: 2.04750377 | AD26: 0.05288201489 | AE26: 1.839927984 | AF26: 0 | AG26: 3.038867414 | AH26: 3.92400302 | AI26: -0.4747430063 | AJ26: -0.5797430063 | AK26: 6.962870434
C27: 100 | D27: 4.814325463 | E27: 5.636258109 | F27: 5.563480558 | G27: 0.01004546459 | I27: 100 | J27: 5.091222079 | K27: 0 | L27: 5.924341179 | M27: 4.28982335 | O27: 80 | P27: 0 | Q27: 0 | R27: 2.817764092 | S27: 0 | T27: 0 | U27: 0 | V27: 2.896336736 | W27: 14.08602529 | Z27: 0.11 | AA27: 1.435872842 | AB27: 5.715909858 | AC27: 2.227164622 | AD27: 0.0475605286 | AE27: 2.001326406 | AF27: 0 | AG27: 3.172653846 | AH27: 3.95161501 | AI27: -0.4482774151 | AJ27: -0.5582774151 | AK27: 7.124268856
C28: 101 | D28: 4.506861975 | E28: 5.420768058 | F28: 5.984581056 | G28: 0.01722085118 | I28: 101 | J28: 4.764036804 | K28: 0 | L28: 6.374984192 | M28: 4.463224487 | O28: 81 | P28: 0 | Q28: 0 | R28: 3.134070036 | S28: 0 | T28: 0 | U28: 0 | V28: 3.158787568 | W28: 13.05490285 | Z28: 0.115 | AA28: 1.606744036 | AB28: 5.72100209 | AC28: 2.407830529 | AD28: 0.0428580462 | AE28: 2.16457496 | AF28: 0 | AG28: 3.309541644 | AH28: 3.977975766 | AI28: -0.4238957883 | AJ28: -0.5388957883 | AK28: 7.28751741
C29: 102 | D29: 4.215372086 | E29: 5.20799296 | F29: 6.421655155 | G29: 0.0271111905 | I29: 102 | J29: 4.454002613 | K29: 0 | L29: 6.842778288 | M29: 4.636625624 | O29: 82 | P29: 0 | Q29: 0 | R29: 3.472652323 | S29: 0 | T29: 0 | U29: 0 | V29: 3.432089609 | W29: 12.03215027 | Z29: 0.12 | AA29: 1.781451642 | AB29: 5.723687232 | AC29: 2.589379359 | AD29: 0.03870196561 | AE29: 2.329455939 | AF29: 0 | AG29: 3.449243727 | AH29: 4.003154662 | AI29: -0.4013376305 | AJ29: -0.5213376305 | AK29: 7.452398389
C30: 103 | D30: 3.939362351 | E30: 4.998312255 | F30: 6.874209407 | G30: 0.04009592314 | I30: 103 | J30: 4.160578337 | K30: 0 | L30: 7.327182299 | M30: 4.810026761 | O30: 83 | P30: 0 | Q30: 0 | R30: 3.83380883 | S30: 0 | T30: 0 | U30: 0 | V30: 3.71562223 | W30: 11.01895388 | Z30: 0.125 | AA30: 1.959430822 | AB30: 5.724364028 | AC30: 2.771711567 | AD30: 0.03502573325 | AE30: 2.495783068 | AF30: 0 | AG30: 3.591507193 | AH30: 4.027218325 | AI30: -0.3803841253 | AJ30: -0.5053841253 | AK30: 7.618725518
C31: 104 | D31: 3.678323323 | E31: 4.792079099 | F31: 7.341734365 | G31: 0.05652820446 | I31: 104 | J31: 3.883206488 | K31: 0 | L31: 7.827638737 | M31: 4.983427899 | O31: 84 | P31: 0 | Q31: 0 | R31: 4.217753412 | S31: 0 | T31: 0 | U31: 0 | V31: 4.008705992 | W31: 10.01649324 | Z31: 0.13 | AA31: 2.140200955 | AB31: 5.723370614 | AC31: 2.954744354 | AD31: 0.03176966587 | AE31: 2.663396121 | AF31: 0 | AG31: 3.736108356 | AH31: 4.050230216 | AI31: -0.3608501204 | AJ31: -0.4908501204 | AK31: 7.786338571
C32: 105 | D32: 3.431733081 | E32: 4.589619154 | F32: 7.823708111 | G32: 0.07673369642 | I32: 105 | J32: 3.621317059 | K32: 0 | L32: 8.343577596 | M32: 5.156829036 | O32: 85 | P32: 0 | Q32: 0 | R32: 4.624616573 | S32: 0 | T32: 0 | U32: 0 | V32: 4.310610509 | W32: 9.025930494 | Z32: 0.135 | AA32: 2.323353163 | AB32: 5.720992986 | AC32: 3.138407617 | AD32: 0.02888098167 | AE32: 2.832156592 | AF32: 0 | AG32: 3.882848612 | AH32: 4.07225043 | AI32: -0.3425778938 | AJ32: -0.4775778938 | AK32: 7.955099042
C33: 106 | D33: 3.199060589 | E33: 4.391229721 | F33: 8.319599606 | G33: 0.1010097009 | I33: 106 | J33: 3.374331132 | K33: 0 | L33: 8.874419956 | M33: 5.330230173 | O33: 86 | P33: 0 | Q33: 0 | R33: 5.054447008 | S33: 0 | T33: 0 | U33: 0 | V33: 4.62056257 | W33: 8.048400166 | Z33: 0.14 | AA33: 2.508539426 | AB33: 5.717472635 | AC33: 3.322641094 | AD33: 0.02631341685 | AE33: 3.00194417 | AF33: 0 | AG33: 4.031550986 | AH33: 4.093335635 | AI33: -0.3254322547 | AJ33: -0.4654322547 | AK33: 8.12488662
C34: 107 | D34: 2.979768854 | E34: 4.1971792 | F34: 8.828871858 | G34: 0.1296246172 | I34: 107 | J34: 3.141664269 | K34: 0 | L34: 9.41958138 | M34: 5.503631311 | O34: 87 | P34: 0 | Q34: 0 | R34: 5.507213942 | S34: 0 | T34: 0 | U34: 0 | V34: 4.937754345 | W34: 7.084999773 | Z34: 0.145 | AA34: 2.695463248 | AB34: 5.713013267 | AC34: 3.507392317 | AD34: 0.02402664882 | AE34: 3.172653879 | AF34: 0 | AG34: 4.182057224 | AH34: 4.113539105 | AI34: -0.3092966597 | AJ34: -0.4542966597 | AK34: 8.295596329
C35: 108 | D35: 2.773317891 | E35: 4.007706849 | F35: 9.350984882 | G35: 0.1628177044 | I35: 108 | J35: 2.922729675 | K35: 0 | L35: 9.978475073 | M35: 5.677032448 | O35: 88 | P35: 0 | Q35: 0 | R35: 5.982810176 | S35: 0 | T35: 0 | U35: 0 | V35: 5.261351583 | W35: 6.136781188 | Z35: 0.15 | AA35: 2.883871699 | AB35: 5.707786613 | AC35: 3.692615109 | AD35: 0.02198565281 | AE35: 3.344193716 | AF35: 0 | AG35: 4.334225351 | AH35: 4.132910815 | AI35: -0.2940701044 | AJ35: -0.4440701044 | AK35: 8.467136166
C36: 109 | D36: 2.579167464 | E36: 3.823022832 | F36: 9.885398442 | G36: 0.2007991241 | I36: 109 | J36: 2.716941127 | K36: 0 | L36: 10.55051481 | M36: 5.850433585 | O36: 89 | P36: 0 | Q36: 0 | R36: 6.481055749 | S36: 0 | T36: 0 | U36: 0 | V36: 5.590501627 | W36: 5.204742919 | Z36: 0.155 | AA36: 3.073548682 | AB36: 5.701937402 | AC36: 3.878268472 | AD36: 0.02016006213 | AE36: 3.516482722 | AF36: 0 | AG36: 4.487927597 | AH36: 4.151497575 | AI36: -0.2796646171 | AJ36: -0.4346646171 | AK36: 8.639425172
C37: 110 | D37: 2.396779617 | E37: 3.643308512 | F37: 10.43157458 | G37: 0.2437502424 | I37: 110 | J37: 2.523715659 | K37: 0 | L37: 11.13511763 | M37: 6.023834723 | O37: 90 | P37: 0 | Q37: 0 | R37: 7.001702131 | S37: 0 | T37: 0 | U37: 0 | V37: 5.924341179 | W37: 4.28982335 | Z37: 0.16 | AA37: 3.26430926 | AB37: 5.695587586 | AC37: 4.064315728 | AD37: 0.01852356815 | AE37: 3.68944937 | AF37: 0 | AG37: 4.643048633 | AH37: 4.169343187 | AI37: -0.2660032229 | AJ37: -0.4260032229 | AK37: 8.81239182
C38: 111 | D38: 2.225620969 | E38: 3.468716995 | F38: 10.98897992 | G38: 0.2918241625 | I38: 111 | J38: 2.342476 | K38: 0 | L38: 11.73170626 | M38: 6.19723586 | O38: 91 | P38: 0 | Q38: 0 | R38: 7.544436837 | S38: 0 | T38: 0 | U38: 0 | V38: 6.262003702 | W38: 3.392894975 | Z38: 0.165 | AA38: 3.455994877 | AB38: 5.688839916 | AC38: 4.250723866 | AD38: 0.01705337672 | AE38: 3.863030229 | AF38: 0 | AG38: 4.799484067 | AH38: 4.186488612 | AI38: -0.2530182767 | AJ38: -0.4180182767 | AK38: 8.985972679
C39: 112 | D39: 2.065164792 | E39: 3.299373859 | F39: 11.55708773 | G39: 0.3451464638 | I39: 112 | J39: 2.172652766 | K39: 0 | L39: 12.33971131 | M39: 6.370636997 | O39: 92 | P39: 0 | Q39: 0 | R39: 8.10888838 | S39: 0 | T39: 0 | U39: 0 | V39: 6.602626375 | W39: 2.514759665 | Z39: 0.17 | AA39: 3.648469343 | AB39: 5.681780949 | AC39: 4.437463015 | AD39: 0.01572972597 | AE39: 4.037168845 | AF39: 0 | AG39: 4.957139153 | AH39: 4.202972142 | AI39: -0.2406500921 | AJ39: -0.4106500921 | AK39: 9.160111295
C40: 113 | D40: 1.914892872 | E40: 3.135378079 | F40: 12.1353798 | G40: 0.4038161212 | I40: 113 | J40: 2.013686418 | K40: 0 | L40: 12.95857325 | M40: 6.544038135 | O40: 93 | P40: 0 | Q40: 0 | R40: 8.694631473 | S40: 0 | T40: 0 | U40: 0 | V40: 6.945356555 | W40: 1.656144928 | Z40: 0.175 | AA40: 3.841615456 | AB40: 5.674483585 | AC40: 4.624506027 | AD40: 0.01453546474 | AE40: 4.211814801 | AF40: 0 | AG40: 5.115927681 | AH40: 4.21882957 | AI40: -0.2288458038 | AJ40: -0.4038458038 | AK40: 9.334757251
C41: 114 | D41: 1.774297143 | E41: 2.976803098 | F41: 12.72334806 | G41: 0.4679065779 | I41: 114 | J41: 1.865028981 | K41: 0 | L41: 13.5877441 | M41: 6.717439272 | O41: 94 | P41: 0 | Q41: 0 | R41: 9.301192387 | S41: 0 | T41: 0 | U41: 0 | V41: 7.289357687 | W41: 0.8177011876 | Z41: 0.18 | AA41: 4.035332168 | AB41: 5.6670092 | AC41: 4.81182813 | AD41: 0.01345568712 | AE41: 4.386922923 | AF41: 0 | AG41: 5.275771017 | AH41: 4.234094356 | AI41: -0.2175584203 | AJ41: -0.3975584203 | AK41: 9.509865373
C42: 115 | D42: 1.642881119 | E42: 2.82369803 | F42: 13.32049602 | G42: 0.5374669473 | I42: 115 | J42: 1.726145531 | K42: 0 | L42: 14.22668894 | M42: 6.890840409 | O42: 95 | P42: 0 | Q42: 0 | R42: 0 | S42: 0 | T42: 0 | U42: 0 | V42: 0 | W42: 0 | Z42: 0.185 | AA42: 4.229532188 | AB42: 5.659409429 | AC42: 4.999406649 | AD42: 0.01247741786 | AE42: 4.562452607 | AF42: 0 | AG42: 5.436597268 | AH42: 4.248797789 | AI42: -0.2067460306 | AJ42: -0.3917460306 | AK42: 9.685395057
C43: 116 | D43: 1.520161128 | E43: 2.676088965 | F43: 13.92634002 | G43: 0.6125233193 | I43: 116 | J43: 1.596515476 | K43: 0 | L43: 14.87488717 | M43: 7.064241546 | O43: 96 | P43: 6.880568721 | Q43: 1.177960402 | R43: 0 | S43: 0 | T43: 7.179289829 | U43: =call_put_down_out(O43,$E$2,$H$2,$H$3,$E$3,$E$4,$H$1,-1) -> 0.002181743867 | V43: 0 | W43: 0 | Z43: 0.19 | AA43: 4.424139973 | AB43: 5.65172768 | AC43: 5.187220761 | AD43: 0.01158934233 | AE43: 4.738367245 | AF43: 0 | AG43: 5.598340563 | AH43: 4.262969133 | AI43: -0.196371135 | AJ43: -0.386371135 | AK43: 9.861309695
C44: 117 | D44: 1.405667341 | E44: 2.533980356 | F44: 14.54041022 | G44: 0.6930801482 | I44: 117 | J44: 1.475633624 | K44: 0 | L44: 15.53183361 | M44: 7.237642684 | O44: 97 | P44: 6.299024525 | Q44: 2.327716068 | R44: 0 | S44: 0 | T44: 6.745393088 | U44: 0.004289955414 | V44: 0 | W44: 0 | Z44: 0.195 | AA44: 4.619090028 | AB44: 5.644000392 | AC44: 5.375251295 | AD44: 0.01078157552 | AE44: 4.91463374 | AF44: 0 | AG44: 5.760940417 | AH44: 4.276635773 | AI44: -0.1864000803 | AJ44: -0.3814000803 | AK44: 10.03757619
C45: 118 | D45: 1.298944638 | E45: 2.39735647 | F45: 15.1622515 | G45: 0.7791216999 | I45: 118 | J45: 1.363011055 | K45: 0 | L45: 16.19703932 | M45: 7.411043821 | O45: 98 | P45: 5.762881179 | Q45: 3.452233526 | R45: 0 | S45: 0 | T45: 6.331746209 | U45: 0.006310945867 | V45: 0 | W45: 0 | Z45: 0.2 | AA45: 4.814325463 | AB45: 5.636258109 | AC45: 5.563480558 | AD45: 0.01004546459 | AE45: 5.091222079 | AF45: 0 | AG45: 5.924341179 | AH45: 4.28982335 | AI45: -0.1768025783 | AJ45: -0.3768025783 | AK45: 10.21416453
C46: 119 | D46: 1.199553287 | E46: 2.266182873 | F46: 15.79142414 | G46: 0.8706135396 | I46: 119 | J46: 1.258175816 | K46: 0 | L46: 16.87003237 | M46: 7.584444958 | O46: 99 | P46: 5.268974396 | Q46: 4.554244342 | R46: 0 | S46: 0 | T46: 5.937928374 | U46: 0.008232813246 | V46: 0 | W46: 0 | Z46: 0.205 | AA46: 5.009796781 | AB46: 5.62852637 | AC46: 5.751892181 | AD46: 0.009373420133 | AE46: 5.268104977 | AF46: 0 | AG46: 6.088491548 | AH46: 4.30255588 | AI46: -0.1675512959 | AJ46: -0.3725512959 | AK46: 10.39104743
C47: 120 | D47: 1.107069481 | E47: =call_put_down_out($E$1,C47,$H$2,$H$3,$E$3,$E$4,$H$1,1) -> 2.140407936 | F47: 16.42750432 | G47: 0.9675040402 | I47: 120 | J47: 1.160673448 | K47: =call_put_up_out($K$1,I47,$H$2,$H$3,$E$3,$E$4,$H$1,1) -> 0 | L47: 17.55035829 | M47: 7.757846096 | O47: 100 | P47: 4.814325463 | Q47: 5.636258109 | R47: 0 | S47: 0 | T47: 5.563480558 | U47: 0.01004546459 | V47: 0 | W47: 0 | Z47: 0.21 | AA47: 5.20546084 | AB47: 5.620826474 | AC47: 5.940470992 | AD47: 0.008758772029 | AE47: 5.445257565 | AF47: 0 | AG47: 6.25334414 | AH47: 4.314855876 | AI47: -0.1586215031 | AJ47: -0.3686215031 | AK47: 10.56820002
C48: 121 | D48: 1.021085715 | E48: =call_put_down_out($E$1,C48,$H$2,$H$3,$E$3,$E$4,$H$1,1) -> 2.019964353 | F48: =call_put_down_in($E$1,C48,$H$2,$H$3,$E$3,$E$4,$H$1,-1) -> 17.07008454 | G48: =call_put_down_out($E$1,C48,$H$2,$H$3,$E$3,$E$4,$H$1,-1) -> 1.069725895 | I48: 121 | J48: 1.070067353 | K48: =call_put_up_out($K$1,I48,$H$2,$H$3,$E$3,$E$4,$H$1,1) -> 0 | L48: =call_put_up_in($K$1,I48,$H$2,$H$3,$E$3,$E$4,$H$1,-1) -> 18.23758049 | M48: =call_put_up_out($K$1,I48,$H$2,$H$3,$E$3,$E$4,$H$1,-1) -> 7.931247233 | O48: 101 | P48: 4.396133003 | Q48: 6.700575125 | R48: 0 | S48: 0 | T48: 5.207909971 | U48: 0.01174060687 | V48: 0 | W48: 0 | Z48: 0.215 | AA48: 5.401279979 | AB48: 5.613176115 | AC48: 6.129202898 | AD48: 0.008195646198 | AE48: 5.622657116 | AF48: 0 | AG48: 6.418855113 | AH48: 4.326744453 | AI48: -0.1499907705 | AJ48: -0.3649907705 | AK48: 10.74559957
C49: 122 | D49: 0.9412110418 | E49: 1.904770643 | F49: 17.71877385 | G49: 1.177197622 | I49: 122 | J49: 0.9859390235 | K49: 0 | L49: 18.93128044 | M49: 8.10464837 | O49: 102 | P49: 4.011765007 | Q49: 7.749298743 | R49: 0 | S49: 0 | T49: 4.87069449 | U49: 0.01331171011 | V49: 0 | W49: 0 | Z49: 0.22 | AA49: 5.597221265 | AB49: 5.605589927 | AC49: 6.318074783 | AD49: 0.007678859122 | AE49: 5.800282812 | AF49: 0 | AG49: 6.584983834 | AH49: 4.338241428 | AI49: -0.1416387075 | AJ49: -0.3616387075 | AK49: 10.92322526
C50: 123 | D50: 0.8670711981 | E50: 1.794732624 | F50: 18.37319799 | G50: 1.289825041 | I50: 123 | J50: 0.9078881396 | K50: 0 | L50: 19.63105785 | M50: 8.278049508 | O50: 103 | P50: 3.658751119 | Q50: 8.784347397 | R50: 0 | S50: 0 | T50: 4.551287019 | U50: 0.01475394641 | V50: 0 | W50: 0 | Z50: 0.225 | AA50: 5.793255854 | AB50: 5.598079943 | AC50: 6.50707442 | AD50: 0.007203827466 | AE50: 5.97811554 | AF50: 0 | AG50: 6.751692579 | AH50: 4.349365411 | AI50: -0.1335467363 | AJ50: -0.3585467363 | AK50: 11.10105799
C51: 124 | D51: 0.7983086251 | E51: 1.689744864 | F51: 19.03299941 | G51: 1.407502719 | I51: 124 | J51: 0.8355325564 | K51: 0 | L51: 20.33653055 | M51: 8.451450645 | O51: 104 | P51: 3.334775119 | Q51: 9.807466274 | R51: 0 | S51: 0 | T51: 4.249119735 | U51: 0.01606410865 | V51: 0 | W51: 0 | Z51: 0.23 | AA51: 5.989358449 | AB51: 5.59065598 | AC51: 6.696190389 | AD51: 0.006766490527 | AE51: 6.15613771 | AF51: 0 | AG51: 6.918946266 | AH51: 4.360133894 | AI51: -0.1256978942 | AJ51: -0.3556978942 | AK51: 11.27908016
C52: 125 | D52: 0.73458239 | E52: 1.589692076 | F52: 19.69783716 | G52: 1.530115368 | I52: 125 | J52: 0.7685081831 | K52: 0 | L52: 21.04733446 | M52: 8.624851782 | O52: 105 | P52: 3.037667632 | Q52: 10.82023863 | R52: 0 | S52: 0 | T52: 3.963608205 | U52: 0.01724051254 | V52: 0 | W52: 0 | Z52: 0.235 | AA52: 6.185506827 | AB52: 5.583325975 | AC52: 6.885412008 | AD52: 0.006363243589 | AE52: 6.3343331 | AF52: 0 | AG52: 7.086712225 | AH52: 4.370563325 | AI52: -0.1180766624 | AJ52: -0.3530766624 | AK52: 11.45727555
C53: 126 | D53: 0.6755680213 | E53: 1.494450464 | F53: 20.36738678 | G53: 1.657539193 | I53: 126 | J53: 0.7064687735 | K53: 0 | L53: 21.76312334 | M53: 8.79825292 | O53: 106 | P53: 2.765399006 | Q53: 11.82409674 | R53: 0 | S53: 0 | T53: 3.694155314 | U53: 0.01828288567 | V53: 0 | W53: 0 | Z53: 0.24 | AA53: 6.381681437 | AB53: 5.576096261 | AC53: 7.074729268 | AD53: 0.005990880547 | AE53: 6.512686719 | AF53: 0 | AG53: 7.254959984 | AH53: 4.380669185 | AI53: -0.1106688152 | AJ53: -0.3506688152 | AK53: 11.63562917
C54: 127 | D54: 0.6209572679 | E54: 1.403889012 | F54: 21.04134001 | G54: 1.789643178 | I54: 127 | J54: 0.6490856368 | K54: 0 | L54: 22.48356849 | M54: 8.971654057 | O54: 107 | P54: 2.516072391 | Q54: 12.82033241 | R54: 0 | S54: 0 | T54: 3.440155006 | U54: 0.01919224689 | V54: 0 | W54: 0 | Z54: 0.245 | AA54: 6.577865055 | AB54: 5.568971812 | AC54: 7.264132773 | AD54: 0.005646544435 | AE54: 6.69118468 | AF54: 0 | AG54: 7.423661077 | AH54: 4.390466053 | AI54: -0.1034612884 | AJ54: -0.3484612884 | AK54: 11.81412713
C55: 128 | D55: 0.5704577921 | E55: 1.3178707 | F55: 21.71940452 | G55: 1.926290304 | I55: 128 | J55: 0.5960472802 | K55: 0 | L55: 23.20835842 | M55: 9.145055194 | O55: 108 | P55: 2.287916996 | Q55: 13.81010713 | R55: 0 | S55: 0 | T55: 3.200995797 | U55: 0.0199707793 | V55: 0 | W55: 0 | Z55: 0.25 | AA55: 6.774042489 | AB55: 5.561956442 | AC55: 7.453613696 | AD55: 0.005327684677 | AE55: 6.869814098 | AF55: 0 | AG55: 7.59278888 | AH55: 4.399967668 | AI55: -0.09644206263 | AJ55: -0.3464420626 | AK55: 11.99275655
C56: 129 | D56: 0.5237928064 | E56: 1.23625366 | F56: 22.40130353 | G56: 2.067338701 | I56: 129 | J56: 0.5470589925 | K56: 0 | L56: 23.93719842 | M56: 9.318456331 | O56: 109 | P56: 2.079281535 | Q56: 14.79446178 | R56: 0 | S56: 0 | T56: 2.97606406 | U56: 0.02062169963 | V56: 0 | W56: 0 | Z56: 0.255 | AA56: 6.970200313 | AB56: 5.555052979 | AC56: 7.643163722 | AD56: 0.005032020101 | AE56: 7.048562991 | AF56: 0 | AG56: 7.762318454 | AH56: 4.409186988 | AI56: -0.0896000614 | AJ56: -0.3446000614 | AK56: 12.17150544
C57: 130 | D57: 0.4807006629 | E57: 1.158892253 | F57: 23.08677537 | G57: 2.212642732 | I57: 130 | J57: 0.5018423799 | K57: 0 | L57: 24.6698101 | M57: 9.491857469 | O57: 110 | P57: 1.888627851 | Q57: 15.77432589 | R57: 0 | S57: 0 | T57: 2.764747064 | U57: 0.02114912668 | V57: 0 | W57: 0 | Z57: 0.26 | AA57: 7.166326654 | AB57: 5.548263418 | AC57: 7.832775015 | AD57: 0.004757506855 | AE57: 7.227420198 | AF57: 0 | AG57: 7.932226407 | AH57: 4.41813624 | AI57: -0.08292506022 | AJ57: -0.3429250602 | AK57: 12.35036265
C58: 131 | D58: 0.4409344034 | E58: 1.085638074 | F58: 23.7755731 | G58: 2.362053991 | I58: 131 | J58: 0.4601348609 | K58: 0 | L58: 25.40593086 | M58: 9.665258606 | O58: 111 | P58: 1.714524745 | Q58: 16.75052651 | R58: 0 | S58: 0 | T58: 2.566435755 | U58: 0.02155795101 | V58: 0 | W58: 0 | Z58: 0.265 | AA58: 7.362410992 | AB58: 5.541589046 | AC58: 8.022440177 | AD58: 0.004502310541 | AE58: 7.406375299 | AF58: 0 | AG58: 8.102490775 | AH58: 4.426826974 | AI58: -0.07640760626 | AJ58: -0.3414076063 | AK58: 12.52931775
C59: 132 | D59: 0.4042612772 | E59: 1.016340886 | F59: 24.46746396 | G59: 2.51542224 | I59: 132 | J59: 0.4216891299 | K59: 0 | L59: 26.14531342 | M59: 9.838659743 | O59: 112 | P59: 1.555641985 | Q59: 17.72379657 | R59: 0 | S59: 0 | T59: 2.380527295 | U59: 0.02185370793 | V59: 0 | W59: 0 | Z59: 0.27 | AA59: 7.558443994 | AB59: 5.535030549 | AC59: 8.212152211 | AD59: 0.004264781963 | AE59: 7.585418555 | AF59: 0 | AG59: 8.273090903 | AH59: 4.435270102 | AI59: -0.07003894688 | AJ59: -0.3400389469 | AK59: 12.708361
C60: 133 | D60: 0.3704622351 | E60: 0.9508494683 | F60: 25.1622289 | G60: 2.67259626 | I60: 133 | J60: 0.3862725961 | K60: 0 | L60: 26.88772517 | M60: 10.01206088 | O60: 113 | P60: 1.410744526 | Q60: 18.69478281 | R60: 0 | S60: 0 | T60: 2.206427335 | U60: 0.0220424554 | V60: 0 | W60: 0 | Z60: 0.275 | AA60: 7.754417371 | AB60: 5.528588107 | AC60: 8.401904492 | AD60: 0.004043435973 | AE60: 7.76454084 | AF60: 0 | AG60: 8.444007346 | AH60: 4.443475943 | AI60: -0.06381096603 | AJ60: -0.338810966 | AK60: 12.88748329
C61: 134 | D61: 0.3393314039 | E61: 0.8890124073 | F61: 25.85966206 | G61: 2.833424636 | I61: 134 | J61: 0.3536668041 | K61: 0 | L61: 27.63294767 | M61: 10.18546202 | O61: 114 | P61: 1.278686926 | Q61: 19.66405333 | R61: 0 | S61: 0 | T61: 2.043552046 | U61: 0.02213065808 | V61: 0 | W61: 0 | Z61: 0.28 | AA61: 7.950323748 | AB61: 5.522261476 | AC61: 8.591690741 | AD61: 0.003836932996 | AE61: 7.943733593 | AF61: 0 | AG61: 8.615221779 | AH61: 4.451454264 | AI61: -0.05771612735 | AJ61: -0.3377161273 | AK61: 13.06667604
C62: 135 | D62: 0.3106755496 | E62: 0.8306787998 | F62: 26.55957019 | G62: 2.997756466 | I62: 135 | J62: 0.3236668435 | K62: 0 | L62: 28.380776 | M62: 10.35886316 | O62: 115 | P62: 1.158407972 | Q62: 20.63210456 | R62: 0 | S62: 0 | T62: 1.891329899 | U62: 0.02212507877 | V62: 0 | W62: 0 | Z62: 0.285 | AA62: 8.146156556 | AB62: 5.516050052 | AC62: 8.781504995 | AD62: 0.003644062859 | AE62: 8.122988767 | AF62: 0 | AG62: 8.786716907 | AH62: 4.45921431 | AI62: -0.05174742336 | AJ62: -0.3367474234 | AK62: 13.24593122
C63: 136 | D63: 0.2843135312 | E63: 0.7756988941 | F63: 27.26177216 | G63: 3.165441998 | I63: 136 | J63: 0.2960807515 | K63: 0 | L63: 29.13101819 | M63: 10.53226429 | O63: 116 | P63: 1.048925516 | Q63: 21.59936793 | R63: 0 | S63: 0 | T63: 1.749203218 | U63: 0.02203267779 | V63: 0 | W63: 0 | Z63: 0.29 | AA63: 8.341909932 | AB63: 5.509952932 | AC63: 8.971341584 | AD63: 0.003463730614 | AE63: 8.302298787 | AF63: 0 | AG63: 8.958476395 | AH63: 4.466764843 | AI63: -0.04589832985 | AJ63: -0.3358983299 | AK63: 13.42524124
C64: 137 | D64: 0.2600757527 | E64: 0.7239246604 | F64: 27.96609837 | G64: 3.336333202 | I64: 137 | J64: 0.2707289136 | K64: 0 | L64: 29.88349464 | M64: 10.70566543 | O64: 117 | P64: 0.9493315194 | Q64: 22.56621604 | R64: 0 | S64: 0 | T64: 1.616629493 | U64: 0.021860521 | V64: 0 | W64: 0 | Z64: 0.295 | AA64: 8.537578639 | AB64: 5.503968966 | AC64: 9.161195111 | AD64: 0.003294944084 | AE64: 8.48165651 | AF64: 0 | AG64: 9.130484792 | AH64: 4.474114168 | AI64: -0.04016276494 | AJ64: -0.3351627649 | AK64: 13.60459896
C65: 138 | D65: 0.2378036152 | E65: 0.6752102962 | F65: 28.67239022 | G65: 3.510284275 | I65: 138 | J65: 0.2474434671 | K65: 0 | L65: 30.63803748 | M65: 10.87906657 | O65: 118 | P65: 0.8587873196 | Q65: 23.53296842 | R65: 0 | S65: 0 | T65: 1.493082491 | U65: 0.02161569673 | V65: 0 | W65: 0 | Z65: 0.3 | AA65: 8.733157987 | AB65: 5.498096799 | AC65: 9.351060433 | AD65: 0.003136802904 | AE65: 8.66105519 | AF65: 0 | AG65: 9.302727473 | AH65: 4.481270167 | AI65: -0.03453505219 | AJ65: -0.3345350522 | AK65: 13.78399764
C66: 139 | D66: 0.2173489738 | E66: 0.6294126692 | F66: 29.38049956 | G66: 3.687152085 | I66: 139 | J66: 0.2260677104 | K66: 0 | L66: 31.39449001 | M66: 11.0524677 | O66: 119 | P66: 0.7765190987 | Q66: 24.49989685 | R66: 0 | S66: 0 | T66: 1.378053156 | U66: 0.02130524174 | V66: 0 | W66: 0 | Z66: 0.305 | AA66: 8.928643774 | AB66: 5.492334905 | AC66: 9.54093264 | AD66: 0.002988488864 | AE66: 8.840488445 | AF66: 0 | AG66: 9.475190577 | AH66: 4.488240318 | AI66: -0.0290098874 | AJ66: -0.3340098874 | AK66: 13.96343089
C67: 140 | D67: 0.198573602 | E67: 0.5863917019 | F67: 30.09028818 | G67: 3.866796555 | I67: 140 | J67: 0.206455522 | K67: 0 | L67: 32.15270611 | M67: 11.22586884 | O67: 120 | P67: 0.7018135734 | Q67: 25.46723037 | R67: 0 | S67: 0 | T67: 1.271050321 | U67: 0.02093607607 | V67: 0 | W67: 0 | Z67: 0.31 | AA67: 9.124032222 | AB67: 5.486681626 | AC67: 9.730807041 | AD67: 0.00284925738 | AE67: 9.01995023 | AF67: 0 | AG67: 9.647860954 | AH67: 4.495031726 | AI67: -0.02358230857 | AJ67: -0.3335823086 | AK67: 14.14289268
Z68: 0.315 | AA68: 9.319319935 | AB68: 5.481135193 | AC68: 9.920679148 | AD68: 0.002718429957 | AE68: 9.199434811 | AF68: 0 | AG68: 9.820726116 | AH68: 4.501651144 | AI68: -0.01824766876 | AJ68: -0.3332476688 | AK68: 14.32237726
Z69: 0.32 | AA69: 9.514503845 | AB69: 5.475693752 | AC69: 10.11054466 | AD69: 0.002595387501 | AE69: 9.378936739 | AF69: 0 | AG69: 9.993774196 | AH69: 4.508104993 | AI69: -0.01300161143 | AJ69: -0.3330016114 | AK69: 14.50187919
Z70: 0.325 | AA70: 9.709581185 | AB70: 5.470355384 | AC70: 10.30039945 | AD70: 0.002479564401 | AE70: 9.558450832 | AF70: 0 | AG70: 10.1669939 | AH70: 4.514399381 | AI70: -0.007840048178 | AJ70: -0.3328400482 | AK70: 14.68139328
Z71: 0.33 | AA71: 9.904549444 | AB71: 5.465118121 | AC71: 10.49023957 | AD71: 0.002370443252 | AE71: 9.73797215 | AF71: 0 | AG71: 10.34037447 | AH71: 4.520540125 | AI71: -0.002759138357 | AJ71: -0.3327591384 | AK71: 14.8609146
Z72: 0.335 | AA72: =call_put_down_in($E$1,$E$2,$H$2,$H$3,$E$3,Z72,$H$1,1) -> 10.09940634 | AB72: =call_put_down_out($E$1,$E$2,$H$2,$H$3,$E$3,Z72,$H$1,1) -> 5.459979964 | AC72: =call_put_down_in($E$1,$E$2,$H$2,$H$3,$E$3,Z72,$H$1,-1) -> 10.68006121 | AD72: =call_put_down_out($E$1,$E$2,$H$2,$H$3,$E$3,Z72,$H$1,-1) -> 0.002267550178 | AE72: =call_put_up_in($K$1,$E$2,$H$2,$H$3,$E$3,Z72,$H$1,1) -> 9.917495983 | AF72: =call_put_up_out($K$1,$E$2,$H$2,$H$3,$E$3,Z72,$H$1,1) -> 0 | AG72: =call_put_up_in($K$1,$E$2,$H$2,$H$3,$E$3,Z72,$H$1,-1) -> 10.51390567 | AH72: =call_put_up_out($K$1,$E$2,$H$2,$H$3,$E$3,Z72,$H$1,-1) -> 4.526532765 | AI72: =(LN($K$1/$E$2)+($H$3+Z72^2/2)*$H$1)/(Z72*SQRT($H$1)) -> 0.00224472938 | AJ72: =AI72-Z72*$H$1 -> -0.3327552706 | AK72: =NORMDIST(-AJ72,0,1,TRUE)*$E$2*EXP(-$H$3*$H$1)-NORMDIST(-AI72,0,1,TRUE)*$K$1 -> 15.04043843
Z73: 0.34 | AA73: 10.29414981 | AB73: 5.454938892 | AC73: 10.8698607 | AD73: 0.002170450642 | AE73: 10.09701783 | AF73: 0 | AG73: 10.6875777 | AH73: 4.532382581 | AI73: 0.007174953948 | AJ73: -0.3328250461 | AK73: 15.21996028
Z74: 0.345 | AA74: 10.48877794 | AB74: 5.449992873 | AC74: 11.05963452 | AD74: 0.002078745727 | AE74: 10.27653339 | AF74: 0 | AG74: 10.86138123 | AH74: 4.538094607 | AI74: 0.01203473722 | AJ74: -0.3329652628 | AK74: 15.39947584
Z75: 0.35 | AA75: 10.68328901 | AB75: 5.445139876 | AC75: 11.24937926 | AD75: 0.001992068791 | AE75: 10.45603854 | AF75: 0 | AG75: 11.03530734 | AH75: 4.543673647 | AI75: 0.01682709812 | AJ75: -0.3331729019 | AK75: 15.57898099
Z76: 0.355 | AA76: 10.87768141 | AB76: 5.440377873 | AC76: 11.43909165 | AD76: 0.001910082491 | AE76: 10.63552932 | AF76: 0 | AG76: 11.20934749 | AH76: 4.549124286 | AI76: 0.02155488547 | AJ76: -0.3334451145 | AK76: 15.75847177
Z77: 0.36 | AA77: 11.07195367 | AB77: 5.435704854 | AC77: 11.6287685 | AD77: 0.001832476101 | AE77: 10.81500195 | AF77: 0 | AG77: 11.3834935 | AH77: 4.554450902 | AI77: 0.02622078984 | AJ77: -0.3337792102 | AK77: 15.9379444
Z78: 0.365 | AA78: 11.26610444 | AB78: 5.431118823 | AC78: 11.81840675 | AD78: 0.001758963112 | AE78: 10.99445278 | AF78: 0 | AG78: 11.55773755 | AH78: 4.559657678 | AI78: 0.03082735436 | AJ78: -0.3341726456 | AK78: 16.11739523
Z79: 0.37 | AA79: 11.46013245 | AB79: 5.426617809 | AC79: 12.00800343 | AD79: 0.001689279071 | AE79: 11.17387829 | AF79: 0 | AG79: 11.73207213 | AH79: 4.564748614 | AI79: 0.03537698471 | AJ79: -0.3346230153 | AK79: 16.29682074
Z80: 0.375 | AA80: 11.65403651 | AB80: =call_put_down_out($E$1,$E$2,$H$2,$H$3,$E$3,Z80,$H$1,1) -> 5.422199868 | AC80: =call_put_down_in($E$1,$E$2,$H$2,$H$3,$E$3,Z80,$H$1,-1) -> 12.19755564 | AD80: =call_put_down_out($E$1,$E$2,$H$2,$H$3,$E$3,Z80,$H$1,-1) -> 0.00162317964 | AE80: 11.35327511 | AF80: 0 | AG80: 11.90649003 | AH80: 4.569727535 | AI80: 0.03987195825 | AJ80: -0.3351280418 | AK80: 16.47621756
Z81: 0.38 | AA81: 11.84781551 | AB81: 5.417863085 | AC81: 12.38706061 | AD81: 0.001560438843 | AE81: 11.53263999 | AF81: 0 | AG81: 12.08098434 | AH81: 4.5745981 | AI81: 0.04431443248 | AJ81: -0.3356855675 | AK81: 16.65558244
Z82: 0.385 | AA82: 12.04146843 | AB82: 5.413605578 | AC82: 12.57651561 | AD82: 0.001500847484 | AE82: 11.71196977 | AF82: 0 | AG82: 12.2555484 | AH82: 4.579363812 | AI82: 0.04870645284 | AJ82: -0.3362935472 | AK82: 16.83491222
Z83: 0.39 | AA83: 12.23499427 | AB83: 5.409425497 | AC83: 12.76591801 | AD83: 0.001444211722 | AE83: 11.89126141 | AF83: 0 | AG83: 12.43017583 | AH83: 4.584028028 | AI83: 0.05304995985 | AJ83: -0.3369500401 | AK83: 17.01420386
Z84: 0.395 | AA84: 12.42839211 | AB84: 5.405321029 | AC84: 12.95526524 | AD84: 0.001390351778 | AE84: 12.07051197 | AF84: 0 | AG84: 12.60486046 | AH84: 4.588593961 | AI84: 0.0573467958 | AJ84: -0.3376532042 | AK84: 17.19345442
Z85: 0.4 | AA85: 12.62166105 | AB85: 5.4012904 | AC85: 13.1445548 | AD85: 0.001339100765 | AE85: 12.24971862 | AF85: 0 | AG85: 12.77959638 | AH85: 4.593064692 | AI85: 0.06159871086 | AJ85: -0.3384012891 | AK85: 17.37266107
Z86: 0.405 | AA86: 12.81480025 | AB86: 5.39733187 | AC86: 13.33378427 | AD86: 0.001290303628 | AE86: 12.42887858 | AF86: 0 | AG86: 12.95437785 | AH86: 4.597443176 | AI86: 0.06580736875 | AJ86: -0.3391926313 | AK86: 17.55182103
